Workbook

Sheet xx专业
A1: 2022级xx专业教学计划进程表
A2: 课程 类别 | D2: 序号 | E2: 课程 代码 | F2: 课程名称 | G2: 课程性质 | H2: 学分 | I2: 计划学时数 | M2: 学期 | X2: 开课单位
I3: 合计 | J3: 理论教学 | K3: 实践教学 | M3: 第一学年 | P3: 第二学年 | S3: 第三学年 | V3: 第四学年
K4: 实验 | L4: 其它实践 | M4: 1 | N4: 2 | O4: 3 | P4: 4 | Q4: 5 | R4: 6 | S4: 7 | T4: 8 | U4: 9 | V4: 10 | W4: 11
A5: 通识课程平台 | B5: 通识必修课程模块 | C5: 思政类 | D5: 1 | E5: GE6275 | F5: 马克思主义基本原理概论 | G5: 必修 | H5: 2.5 | I5: 40 | J5: 40 | P5: 2.5 | X5: 马克思学院
D6: 2 | E6: GE6288 | F6: 毛泽东思想和中国特色社会主义理论体系概论 | G6: 必修 | H6: 4 | I6: 64 | J6: 64 | Q6: 4 | X6: 马克思学院
D7: 3 | E7: GE6273 | F7: 中国近现代史纲要 | G7: 必修 | H7: 2.5 | I7: 40 | J7: 40 | N7: 2.5 | X7: 马克思学院
D8: 4 | E8: GE6267 | F8: 思想道德与法治 | G8: 必修 | H8: 2.5 | I8: 40 | J8: 40 | M8: 2.5 | X8: 马克思学院
D9: 5 | E9: GE6225 | F9: 马克思主义中国化进程与青年学生使命担当 | G9: 必修 | H9: 1 | I9: 24 | J9: 24 | M9: 1 | X9: 马克思学院
D10: 6 | E10: GE6175 | F10: 形势与政策Ⅰ | G10: 必修 | H10: 0.25 | I10: 8 | J10: 8 | M10: 0.25 | X10: 马克思学院
D11: 7 | E11: GE6176 | F11: 形势与政策Ⅱ | G11: 必修 | H11: 0.25 | I11: 8 | J11: 8 | N11: 0.25 | X11: 马克思学院
D12: 8 | E12: GE6177 | F12: 形势与政策Ⅲ | G12: 必修 | H12: 0.25 | I12: 8 | J12: 8 | P12: 0.25 | X12: 马克思学院
D13: 9 | E13: GE6178 | F13: 形势与政策Ⅳ | G13: 必修 | H13: 0.25 | I13: 8 | J13: 8 | Q13: 0.25 | X13: 马克思学院
D14: 10 | E14: GE6179 | F14: 形势与政策Ⅴ | G14: 必修 | H14: 0.25 | I14: 8 | J14: 8 | S14: 0.25 | X14: 马克思学院
D15: 11 | E15: GE6180 | F15: 形势与政策Ⅵ | G15: 必修 | H15: 0.25 | I15: 8 | J15: 8 | T15: 0.25 | X15: 马克思学院
D16: 12 | E16: GE6181 | F16: 形势与政策Ⅶ | G16: 必修 | H16: 0.25 | I16: 8 | J16: 8 | V16: 0.25 | X16: 马克思学院
D17: 13 | E17: GE6182 | F17: 形势与政策Ⅷ | G17: 必修 | H17: 0.25 | I17: 8 | J17: 8 | W17: 0.25 | X17: 马克思学院
D18: 14 | E18: GE6296 | F18: 思政实践 | G18: 必修 | H18: 2.5 | I18: 40 | L18: 40 | Q18: 2.5 | X18: 马克思学院
C19: 素质类 | D19: 15 | E19: GE6240 | F19: 程序设计基础 | G19: 必修 | H19: 3 | I19: 48 | J19: 32 | K19: 16 | M19: 3 | X19: 计算机学院
D20: 16 | E20: GE6154 | F20: 沟通与演讲（《沟通与演讲》或《文献检索与论文写作》二选一） | G20: 必修 | H20: 2 | I20: 32 | J20: 32 | N20: 2 | X20: 马克思学院
D21: 17 | E21: GE6222 | F21: 文献检索与论文写作（《沟通与演讲》或《文献检索与论文写作》二选一） | G21: 必修 | H21: 2 | I21: 32 | J21: 32 | T21: 2 | X21: 马克思学院
D22: 18 | E22: GE6023 | F22: 大学生心理健康教育（计算机、商管、国教院安排在第一学期，信工、数媒、外国语安排在第二学期，自行填写学分至开设学期） | G22: 必修 | H22: 2 | I22: 32 | J22: 26 | L22: 6 | X22: 马克思学院
D23: 19 | E23: GE6197 | F23: 大学生就业指导 | G23: 必修 | H23: 1 | I23: 16 | J23: 16 | S23: 1 | X23: 基础教学院
D24: 20 | E24: GE6272 | F24: 劳动教育 | G24: 必修 | H24: 0.5 | I24: 10 | J24: 8 | L24: 2 | M24: 0.5 | X24: 基础教学院
D25: 21 | E25: GE6293 | F25: 实验室安全教育 | G25: 必修 | H25: 0 | I25: 2 | J25: 2 | M25: √ | X25: 实验实训中心
D26: 22 | E26: GE6294 | F26: 社会实践 | G26: 必修 | H26: 1 | I26: 26 | J26: 4 | L26: 22 | N26: 1 | X26: 校团委
C27: 外语类 | D27: 23 | E27: GE6220 | F27: 大学英语Ⅰ | G27: 必修 | H27: 3 | I27: 48 | J27: 48 | M27: 3 | X27: 外国语学院
D28: 24 | E28: GE6229 | F28: 大学英语Ⅱ | G28: 必修 | H28: 3 | I28: 48 | J28: 48 | N28: 3 | X28: 外国语学院
D29: 25 | E29: GE6231 | F29: 大学英语Ⅲ | G29: 必修 | H29: 3 | I29: 48 | J29: 48 | P29: 3 | X29: 外国语学院
D30: 26 | E30: GE6233 | F30: 大学英语Ⅳ | G30: 必修 | H30: 3 | I30: 48 | J30: 48 | Q30: 3 | X30: 外国语学院
D31: 27 | E31: GE6221 | F31: 大学英语Ⅰ（艺术类） | G31: 必修 | H31: 3 | I31: 48 | J31: 48 | M31: 3 | X31: 外国语学院
D32: 28 | E32: GE6230 | F32: 大学英语Ⅱ（艺术类） | G32: 必修 | H32: 3 | I32: 48 | J32: 48 | N32: 3 | X32: 外国语学院
D33: 29 | E33: GE6232 | F33: 大学英语Ⅲ（艺术类） | G33: 必修 | H33: 3 | I33: 48 | J33: 48 | P33: 3 | X33: 外国语学院
D34: 30 | E34: GE6234 | F34: 大学英语Ⅳ（艺术类） | G34: 必修 | H34: 3 | I34: 48 | J34: 48 | Q34: 3 | X34: 外国语学院
C35: 理工类 | D35: 31 | E35: GE6173 | F35: 高等数学Ⅰ（理工类） | G35: 必修 | H35: 6 | I35: 96 | J35: 96 | M35: 6 | X35: 基础教学院
D36: 32 | E36: GE6045 | F36: 高等数学Ⅱ（理工类） | G36: 必修 | H36: 4 | I36: 64 | J36: 64 | N36: 4 | X36: 基础教学院
D37: 33 | E37: GE6042 | F37: 高等数学Ⅰ（经管类） | G37: 必修 | H37: 4 | I37: 64 | J37: 64 | M37: 4 | X37: 基础教学院
D38: 34 | E38: GE6043 | F38: 高等数学Ⅱ（经管类） | G38: 必修 | H38: 4 | I38: 64 | J38: 64 | N38: 4 | X38: 基础教学院
D39: 35 | E39: GE6001 | F39: 线性代数 | G39: 必修 | H39: 3 | I39: 48 | J39: 48 | P39: 3 | X39: 基础教学院
D40: 36 | E40: GE6009 | F40: 概率论与数理统计 | G40: 必修 | H40: 3 | I40: 48 | J40: 48 | Q40: 3 | X40: 基础教学院
D41: 37 | E41: GE6246 | F41: 大学物理 | G41: 必修 | H41: 4 | I41: 64 | J41: 64 | N41: 4 | X41: 基础教学院
D42: 38 | E42: GE6292 | F42: 大学物理实验 | G42: 必修 | H42: 1 | I42: 24 | K42: 24 | P42: 1 | X42: 基础教学院
C43: 军事体育类 | D43: 39 | E43: GE6219 | F43: 军事理论（计算机、商管、国教院安排在第二学期，信工、数媒、外国语安排在第一学期，自行填写学分至开设学期） | G43: 必修 | H43: 2 | I43: 36 | J43: 36 | X43: 基础教学院
D44: 40 | E44: GE6187 | F44: 体育Ⅰ | G44: 必修 | H44: 1 | I44: 36 | L44: 36 | M44: 1 | X44: 基础教学院
D45: 41 | E45: GE6188 | F45: 体育Ⅱ | G45: 必修 | H45: 1 | I45: 36 | L45: 36 | N45: 1 | X45: 基础教学院
D46: 42 | E46: GE6189 | F46: 体育Ⅲ | G46: 必修 | H46: 0.5 | I46: 18 | L46: 18 | P46: 0.5 | X46: 基础教学院
D47: 43 | E47: GE6190 | F47: 体育Ⅳ | G47: 必修 | H47: 0.5 | I47: 18 | L47: 18 | Q47: 0.5 | X47: 基础教学院
D48: 44 | E48: GE6191 | F48: 体育Ⅴ | G48: 必修 | H48: 0.5 | I48: 18 | L48: 18 | S48: 0.5 | X48: 基础教学院
D49: 45 | E49: GE6192 | F49: 体育Ⅵ | G49: 必修 | H49: 0.5 | I49: 18 | L49: 18 | T49: 0.5 | X49: 基础教学院
C50: 创新创业类 | D50: 46 | E50: GE6247 | F50: 创新、创造与改变 | G50: 必修 | H50: 2 | I50: 32 | J50: 14 | L50: 18 | M50: 2 | X50: 思沃学院
D51: 47 | E51: GE6248 | F51: 思维创新与开发 | G51: 必修 | H51: 2 | I51: 32 | J51: 16 | L51: 16 | N51: 2 | X51: 思沃学院
D52: 48 | E52: GE6249 | F52: 创业者的成长之路 | G52: 必修 | H52: 2 | I52: 32 | J52: 24 | L52: 8 | P52: 2 | X52: 思沃学院
D53: 49 | E53: GE6290 | F53: 从非商业计划到商业计划 | G53: 必修 | H53: 2 | I53: 32 | J53: 16 | L53: 16 | Q53: 2 | X53: 思沃学院
D54: 50 | E54: GE6295 | F54: 创新创业及素质教育实践 | G54: 必修 | H54: 1 | X54: 专业所在学院
B55: 通识必修学分/学时小计及学分要求 | H55: =SUM(H5:H54) -> 96.5 | I55: =SUM(J55:L55) -> 1674 | J55: =SUM(J5:J54) -> 1362 | K55: =SUM(K5:K54) -> 40 | L55: =SUM(L5:L54) -> 272 | M55: =SUM(M5:M54) -> 26.25 | N55: =SUM(N5:N54) -> 26.75 | P55: 15.25 | Q55: 18.25 | S55: 1.75 | T55: 2.75 | V55: 0.25 | W55: 0.25
B56: 通识选修课程模块 | C56: 自然与科技类 | D56: 1 | F56: 详见通识选修课程库 | H56: 2 | M56: 最低学分要求8学分，自然与科技类、人文社科类、艺术类、创新创业类四类课程每类至少修2学分。
C57: 人文社科类 | D57: 2 | F57: 详见通识选修课程库 | H57: 2
C58: 艺术类 | D58: 3 | F58: 详见通识选修课程库 | H58: 2
C59: 创新创业类 | D59: 4 | F59: 详见通识选修课程库 | H59: 2
B60: 通识选修学分/学时小计及学分要求 | H60: 8 | I60: 128 | J60: 128
A61: 学科及专业基础课程平台 | B61: 学科基础课程模块 | D61: 1 | G61: 必修
D62: 2 | G62: 必修
D63: 3 | G63: 必修
B64: 专业基础课程模块 | D64: 4 | G64: 必修
D65: 5 | G65: 必修
D66: 6 | G66: 必修
B67: 学科及专业基础必修学分/学时小计及学分要求 | H67: =SUM(H61:H66) -> 0 | I67: =SUM(J67:L67) -> 0 | J67: =SUM(J61:J66) -> 0 | K67: =SUM(K61:K66) -> 0 | L67: =SUM(L61:L66) -> 0 | M67: =SUM(M61:M66) -> 0 | N67: 0 | O67: 0 | P67: 0 | Q67: 0 | R67: 0 | S67: 0 | T67: 0 | U67: 0 | V67: 0 | W67: 0
A68: 专业课程平台 | B68: 专业必修课程模块 | D68: 1 | F68: 专业导引与职涯规划 | G68: 必修
D69: 2 | G69: 必修
D70: 3 | G70: 必修
D71: 5 | G71: 必修
D72: 6 | G72: 必修
D73: 7 | G73: 必修
D74: 8 | G74: 必修
D75: 9 | G75: 必修
D76: 10 | G76: 必修
D77: 11 | G77: 必修
D78: 专业必修学分/学时小计及学分要求 | H78: =SUM(H68:H77) -> 0 | I78: =SUM(I68:I77) -> 0 | J78: =SUM(J68:J77) -> 0 | K78: =SUM(K68:K77) -> 0 | L78: =SUM(L68:L77) -> 0 | M78: =SUM(M68:M77) -> 0 | N78: 0 | O78: 0 | P78: 0 | Q78: 0 | R78: 0 | S78: 0 | T78: 0 | U78: 0 | V78: 0 | W78: 0
B79: 专业选修课程模块 | D79: 1 | G79: 选修 | H79: 2 | I79: 32 | J79: 8 | L79: 24 | P79: 2
D80: 2 | G80: 选修 | H80: 2 | I80: 32 | J80: 16 | L80: 16 | P80: 2
D81: 3 | G81: 选修 | H81: 2 | I81: 32 | J81: 16 | K81: 16 | P81: 2
D82: 4 | G82: 选修 | H82: 2 | I82: 32 | J82: 24 | L82: 8 | P82: 2
D83: 5 | G83: 选修
D84: 6 | G84: 选修
D85: 7 | G85: 选修
D86: 8 | G86: 选修
D87: 9 | G87: 选修
D88: 10 | G88: 选修
D89: 11 | G89: 选修
D90: 12 | G90: 选修
D91: 专业选修学分/学时小计及学分要求 | H91: 2 | I91: =ROUND(($H$91/SUM($H$79:$H$90))*SUM(I79:I90),0) -> 32 | J91: =ROUND(($H$91/SUM($H$79:$H$90))*SUM(J79:J90),0) -> 16 | K91: =ROUND(($H$91/SUM($H$79:$H$90))*SUM(K79:K90),0) -> 4 | L91: =ROUND(($H$91/SUM($H$79:$H$90))*SUM(L79:L90),0) -> 12 | P91: 2
A92: 集中实践环节 | B92: 军训类 | D92: 1 | F92: 军事技能 | G92: 必修 | H92: 2 | M92: 2周 | X92: 学工部
B93: 专业实践类 | D93: 2 | F93: 基本能力实训 | G93: 必修 | H93: 4 | O93: 4周 | X93: 专业所在学院
D94: 3 | F94: 专业能力实训 | G94: 必修 | H94: 4 | R94: 4周 | X94: 专业所在学院
D95: 4 | F95: 综合能力实训 | G95: 必修 | H95: 4 | U95: 4周 | X95: 专业所在学院
D96: 5 | F96: 项目实训 | G96: 必修 | H96: 8 | V96: 8周（语言类专业为4周） | X96: 专业所在学院
B97: 毕业 设计类 | D97: 6 | F97: 毕业设计（论文） | G97: 必修 | H97: 6 | W97: 12周（计算机类专业为14周） | X97: 专业所在学院
B98: 集中实践必修学分/学时小计及学分要求 | H98: =SUM(H92:H97) -> 28 | M98: 2 | O98: 4 | R98: 4 | U98: 4 | V98: 8 | W98: 6
A99: 学分/学时总计 | H99: =H55+H60+H67+H78+H91+H98 -> 134.5 | I99: =I98+I91+I78+I67+I60+I55 -> 1834 | J99: =J98+J91+J78+J67+J60+J55 -> 1506 | K99: =K98+K91+K78+K67+K60+K55 -> 44 | L99: =L98+L91+L78+L67+L60+L55 -> 284 | M99: =M55+M60+M67+M78+M91+M98 -> 28.25 | N99: 26.75 | O99: 4 | P99: 17.25 | Q99: 18.25 | R99: 4 | S99: 1.75 | T99: 2.75 | U99: 4 | V99: 8.25 | W99: 6.25
A100: 备注： 1、《大学生心理健康》和《军事理论》需要自行填写学分至开设学期。 2、通识必修课各专业按照需要选择，如《大学英语》艺术类与非艺术类、数学课和物理课等，不需要开设的课程删去，并调整课程序号。 3、《沟通与演讲》或《文献检索与论文写作》二选一，不开设的课程删去，并调整课程序号。 4、通识选修课需要填写学分至开设学期。

Sheet 统计
A1: 课程类别 | B1: 必修课： 学分 | I1: 选修课： 学分 | L1: 实践学分 | M1: 总学分
B2: 通识必修课 | D2: 学科及专业基础课 | F2: 专业课 | H2: 集中实践环节 | I2: 通识选修课 | J2: 专业选修课
B3: 理论 | C3: 实践 | D3: 理论 | E3: 实践 | F3: 理论 | G3: 实践 | H3: 实践 | I3: 理论 | J3: 理论 | K3: 实践
A4: 学分 | B4: =(B9-46)/16 -> 82.25 | C4: =(C9-100)/16+1 -> 14.25 | D4: =D9/16 -> 0.0 | E4: =E9/16 -> 0.0 | F4: =F9/16 -> 0.0 | G4: =G9/16 -> 0.0 | H4: =SUM(xx专业!H92:H97) -> 28.0 | I4: =I9/16 -> 8.0 | J4: =J9/16 -> 1.0 | K4: =K9/16 -> 1.0 | L4: 每个类别实践学分之和 | M4: =xx专业!H99 -> 134.5
A5: 实践教学环节学分所占比例： %（注：实践学分/总学分）
A6: 课程类别 | B6: 必修课 | I6: 选修课 | L6: 课内学时 | M6: 总学时
B7: 通识必修课 | D7: 学科及专业基础课 | F7: 专业课 | H7: 集中实践环节 | I7: 通识选修课 | J7: 专业选修课
B8: 理论 | C8: 实践 | D8: 理论 | E8: 实践 | F8: 理论 | G8: 实践 | H8: 实践 | I8: 理论 | J8: 理论 | K8: 实践
A9: 学时 | B9: =xx专业!J55 -> 1362 | C9: =(xx专业!K55+xx专业!L55) -> 312 | D9: =xx专业!J67 -> 0 | E9: =(xx专业!K67+xx专业!L67) -> 0 | F9: =xx专业!J78 -> 0 | G9: =(xx专业!K78+xx专业!L78) -> 0 | H9: 28周（根据实际填写） | I9: 128 | J9: =xx专业!J91 -> 16 | K9: =xx专业!K91+xx专业!L91 -> 16 | L9: =SUM(B9:G9)+SUM(I9:K9) -> 1834 | M9: =L9&"学时"&"+"&H9 -> 1834学时+28周（根据实际填写）
A10: ="实践教学环节学时所占比例："&ROUND((C9+E9+G9+K9+LEFT(H9,2)*20)/(SUM(B9:G9)+SUM(I9:K9)+LEFT(H9,2)*20)*100,2)&"%" -> 实践教学环节学时所占比例：37.09%
A11: 注：
A12: 1．集中性实践教学环节每周折算20学时。
A13: 2．实践教学环节学时所占比例=各类课程实践学时之和/总学时。
A14: 3．课内总学时不含集中实践环节学时。
A15: 4．创新创业及素质教育学时只计算创新创业课程的学时，创新创业及素质教育实践学分不折算学时。
A16: 5．专业选修课理论（实践）学时=（专业选修课最低要求学分/计划中列出的专业选修课学分之和）×专业选修课理论（实践）学时之和。
A17: 6．通识选修课的学时=通识选修课的学分要求×16，全部计入理论学时。
